bitfinex/quotes_BTCUSD_20251212
["timestamp","ask_amount","ask_price","bid_price","bid_amount"]
[1765561408679,1.26982086,90267.0,90266.0,0.00011601]
[1765561408882,1.15382086,90267.0,90266.0,0.00011601]
[1765561409677,1.59882086,90267.0,90266.0,0.00011601]
[1765561411389,1.05222086,90267.0,90266.0,0.00011601]
[1765561411591,1.04922086,90267.0,90266.0,0.00011601]
[1765561411816,1.59582086,90267.0,90266.0,0.00011601]
[1765561412020,1.60182086,90267.0,90266.0,0.00011601]
[1765561414404,1.84932086,90267.0,90266.0,0.00011601]
[1765561414570,1.87911126,90267.0,90266.0,0.00011601]
[1765561414933,1.84932086,90267.0,90266.0,0.00011601]
[1765561415685,1.84932086,90267.0,90200.0,0.71888641]
[1765561415686,0.0110834,90225.0,90222.0,0.02796377]
[1765561415868,0.01108266,90231.0,90222.0,0.02796377]
[1765561415869,0.01108315,90227.0,90223.0,0.2327566]
[1765561416071,0.01108315,90227.0,90222.0,0.00011606]
[1765561416072,0.25473296,90223.0,90222.0,0.00011606]
[1765561416271,0.23114296,90223.0,90222.0,0.00011606]
[1765561416786,0.22167296,90223.0,90222.0,0.00011606]
[1765561416953,0.23275145,90225.0,90222.0,0.00011606]
[1765561417152,0.0110834,90225.0,90222.0,0.00011606]
[1765561417350,0.22167296,90223.0,90222.0,0.00011606]
[1765561417550,0.23275147,90225.0,90222.0,0.00011606]
[1765561417798,0.001,90223.0,90222.0,0.00411606]
[1765561417974,0.01108327,90226.0,90223.0,0.2327566]
[1765561418174,0.23274868,90227.0,90223.0,0.2327566]
[1765561418378,0.001,90225.0,90224.0,0.01108352]
[1765561418579,0.01108278,90230.0,90227.0,0.01108315]
[1765561418779,0.01108205,90236.0,90232.0,0.01108254]
[1765561419009,0.01108205,90236.0,90229.0,0.22165822]
[1765561419010,0.01108241,90233.0,90229.0,0.02433]
[1765561419182,0.01108241,90233.0,90229.0,0.0097824]
[1765561419183,0.23273383,90232.0,90229.0,0.0097824]
[1765561419385,0.01108266,90231.0,90227.0,0.01108315]
[1765561419586,0.01108266,90231.0,90228.0,0.01108303]
[1765561419900,0.01108278,90230.0,90227.0,0.001]
[1765561420119,0.22166068,90228.0,90227.0,0.001]
[1765561420274,0.23273862,90230.0,90227.0,0.001]
[1765561420504,0.01108278,90230.0,90228.0,0.02338749]
[1765561420715,0.01108278,90230.0,90227.0,0.001]
[1765561420914,0.01108327,90226.0,90222.0,0.01119983]
[1765561421121,0.01108327,90226.0,90223.0,0.01108364]
[1765561421322,0.0110834,90225.0,90222.0,0.00011606]
[1765561421751,0.02359,90223.0,90222.0,0.00011606]
[1765561422153,0.02359,90223.0,90222.0,0.00111606]
[1765561422555,0.05794,90223.0,90222.0,0.00011606]
[1765561422960,0.02359,90223.0,90222.0,0.00111606]
[1765561423363,0.02359,90223.0,90222.0,0.00211606]
[1765561423539,0.02359,90223.0,90222.0,0.00111606]
[1765561424284,0.2216705,90224.0,90222.0,0.00111606]
[1765561424461,0.2216705,90224.0,90222.0,0.00011606]
[1765561424462,0.02359,90223.0,90222.0,0.00011606]
[1765561424669,0.05794,90223.0,90222.0,0.00011606]
[1765561425885,0.05894,90223.0,90222.0,0.00011606]
[1765561426493,0.02459,90223.0,90222.0,0.00011606]
[1765561427042,0.05994,90223.0,90222.0,0.00011606]
[1765561427231,0.05894,90223.0,90222.0,0.00011606]
[1765561427606,0.05794,90223.0,90222.0,0.00011606]
[1765561428023,0.05894,90223.0,90222.0,0.00011606]
[1765561428223,0.05994,90223.0,90222.0,0.00011606]
[1765561428437,0.05894,90223.0,90222.0,0.00011606]
[1765561428837,0.05994,90223.0,90222.0,0.00011606]
[1765561429516,0.002,90223.0,90222.0,0.00011606]
[1765561429719,0.05994,90223.0,90222.0,0.00011606]
[1765561430651,0.05894,90223.0,90222.0,0.00011606]
[1765561430852,0.05794,90223.0,90222.0,0.00011606]
[1765561431764,0.05894,90223.0,90222.0,0.00011606]
[1765561432186,0.05794,90223.0,90222.0,0.00011606]
[1765561432638,0.05894,90223.0,90222.0,0.00011606]
[1765561432784,0.28061296,90223.0,90222.0,0.00011606]
[1765561432980,0.83451035,90223.0,90222.0,0.00011606]
[1765561433208,1.85736671,90223.0,90222.0,0.00011606]
[1765561433413,1.84266932,90223.0,90222.0,0.00011606]
[1765561433614,1.84366932,90223.0,90222.0,0.00011606]
[1765561434017,0.84366932,90223.0,90222.0,0.00011606]
[1765561434231,1.84266932,90223.0,90222.0,0.00011606]
[1765561434585,1.82181296,90223.0,90222.0,0.00011606]
[1765561434796,1.82081296,90223.0,90222.0,0.00011606]
[1765561435006,1.81781296,90223.0,90222.0,0.00011606]
[1765561435436,1.82181296,90223.0,90222.0,0.00011606]
[1765561435858,1.81781296,90223.0,90222.0,0.00011606]
[1765561436277,1.82081296,90223.0,90222.0,0.00011606]
[1765561436482,1.81781296,90223.0,90222.0,0.00011606]
[1765561436873,1.81981296,90223.0,90222.0,0.00011606]
[1765561437273,1.82181296,90223.0,90222.0,0.00011606]
[1765561438446,1.84564625,90223.0,90222.0,0.00011606]
[1765561438644,1.82181296,90223.0,90222.0,0.00011606]
[1765561440264,1.84565152,90223.0,90222.0,0.00011606]
[1765561440465,1.84565152,90223.0,90200.0,0.0002]
[1765561440466,0.22172703,90201.0,90200.0,0.0002]
[1765561440683,0.01108536,90209.0,90200.0,0.02412701]
[1765561440874,0.0110861,90203.0,90201.0,0.0164]
[1765561441069,0.0110861,90203.0,90200.0,0.00058701]
[1765561441271,0.22172685,90202.0,90200.0,0.00058701]
[1765561441578,0.0110861,90203.0,90200.0,0.00158701]
[1765561441579,0.05924,90201.0,90200.0,0.00158701]
[1765561441779,0.28096703,90201.0,90200.0,0.00158701]
[1765561442188,0.02326,90201.0,90200.0,0.00058701]
[1765561442383,0.23279798,90207.0,90202.0,0.01108622]
[1765561442618,0.02929426,90218.0,90212.0,0.01108499]
[1765561442788,0.01821,90218.0,90215.0,0.01108463]
[1765561442993,0.01108266,90231.0,90228.0,0.01108303]
[1765561443199,0.01108278,90230.0,90229.0,0.0243829]
[1765561443398,0.01108266,90231.0,90228.0,0.01108303]
[1765561443605,0.01108278,90230.0,90226.0,0.02586327]
[1765561443976,0.22166312,90228.0,90226.0,0.01478]
[1765561444251,0.01108315,90227.0,90223.0,0.01108364]
[1765561444460,0.01108327,90226.0,90223.0,0.01108364]
[1765561444829,0.0110834,90225.0,90221.0,0.0147]
[1765561445493,0.01108352,90224.0,90221.0,0.0147]
[1765561445647,0.23275624,90224.0,90221.0,0.0147]
[1765561445825,0.01108364,90223.0,90219.0,0.01108413]
[1765561446045,0.02326,90220.0,90216.0,0.0110845]
[1765561446246,0.01108413,90219.0,90215.0,0.01108463]
[1765561446585,0.01108413,90219.0,90215.0,0.03981778]
[1765561447087,0.01108426,90218.0,90215.0,0.02873315]
[1765561447331,0.01108364,90223.0,90215.0,0.02873315]
[1765561447332,0.22166301,90228.0,90222.0,0.01108377]
[1765561447504,0.01108327,90226.0,90222.0,0.01108377]
[1765561447658,0.23275106,90226.0,90222.0,0.01108377]
[1765561447858,0.01108327,90226.0,90222.0,0.01108377]
[1765561448093,0.01108266,90231.0,90226.0,0.01108327]
[1765561448295,0.01108291,90229.0,90224.0,0.01108352]
[1765561448469,0.00674362,90230.0,90227.0,0.01108315]
[1765561448833,0.01108217,90235.0,90230.0,0.01108278]
[1765561449035,0.01108192,90237.0,90232.0,0.01108254]
[1765561449176,0.01108205,90236.0,90232.0,0.01108254]
[1765561449376,0.01108254,90232.0,90229.0,0.01108291]
[1765561449597,0.01108241,90233.0,90230.0,0.01108278]
[1765561450047,0.01108229,90234.0,90231.0,0.01108266]
[1765561450397,0.00894,90231.0,90229.0,0.01108291]
[1765561450707,0.0110818,90238.0,90234.0,0.22164524]
[1765561450917,0.01108192,90237.0,90232.0,0.2327313]
[1765561451141,0.02326,90233.0,90217.0,0.01108438]
[1765561451345,0.00674362,90232.0,90221.0,0.01108389]
[1765561451555,0.00674362,90240.0,90234.0,0.01108229]
[1765561451758,0.00674362,90240.0,90229.0,0.01108291]
[1765561451759,0.01108094,90245.0,90241.0,0.01108143]
[1765561451929,0.01108119,90243.0,90240.0,0.01731]
[1765561452175,0.01108143,90241.0,90238.0,0.0110818]
[1765561452386,0.04313143,90241.0,90236.0,0.01108205]
[1765561452522,0.01782518,90240.0,90237.0,0.01108192]
[1765561452703,0.00674362,90240.0,90237.0,0.23271932]
[1765561452915,0.00879,90241.0,90239.0,0.22163366]
[1765561454240,0.24150115,90241.0,90237.0,0.01108192]
[1765561454457,0.24150115,90241.0,90235.0,0.23272406]
[1765561454458,0.0110818,90238.0,90235.0,0.01108217]
[1765561454635,0.00674362,90240.0,90237.0,0.23272049]
[1765561454838,0.01208119,90243.0,90239.0,0.03462168]
[1765561455058,0.01208119,90243.0,90240.0,0.01108156]
[1765561455232,0.001,90243.0,90241.0,0.22162874]
[1765561455575,0.001,90243.0,90240.0,0.01108156]
[1765561455576,0.01107984,90254.0,90250.0,0.01108033]
[1765561455713,0.30189586,90254.0,90250.0,0.01108033]
[1765561456137,0.01108008,90252.0,90248.0,0.01108057]
[1765561456722,0.0110802,90251.0,90248.0,0.01108057]
[1765561457021,0.00211602,90254.0,90252.0,0.22160173]
[1765561457430,0.00011602,90254.0,90253.0,0.02354]
[1765561458474,0.00211602,90254.0,90253.0,0.05743]
[1765561458679,0.00211602,90254.0,90253.0,0.02354]
[1765561458885,0.00011602,90254.0,90253.0,0.05743]
[1765561459306,0.00011602,90254.0,90253.0,0.05843]
[1765561460099,0.00011602,90254.0,90253.0,0.05743]
[1765561460500,0.00011602,90254.0,90253.0,0.05843]
[1765561461106,0.00011602,90254.0,90253.0,0.05943]
[1765561461694,0.00011602,90254.0,90253.0,0.05843]
[1765561461891,0.00011602,90254.0,90253.0,0.05943]
[1765561464329,0.00011602,90254.0,90253.0,0.10944839]
[1765561465336,0.00011602,90254.0,90253.0,0.40014839]
[1765561466353,0.00011602,90254.0,90253.0,0.39814839]
[1765561466548,0.00011602,90254.0,90253.0,0.40014839]
[1765561466815,0.00011602,90254.0,90253.0,0.40114839]
[1765561467560,0.2475,90284.0,90282.0,0.22152586]
[1765561467770,0.0110753,90291.0,90287.0,0.01107579]
[1765561467964,0.01119132,90291.0,90287.0,0.01107579]
[1765561468171,0.23269735,90291.0,90287.0,0.04358579]
[1765561468403,0.00011602,90291.0,90289.0,0.22151092]
[1765561468605,0.00011602,90291.0,90290.0,0.02358]
[1765561469871,0.00011602,90291.0,90290.0,0.24508847]
[1765561470071,0.00011602,90291.0,90290.0,0.27759847]
[1765561470512,0.00011602,90291.0,90290.0,0.05609]
[1765561470735,0.00011602,90291.0,90290.0,0.27759847]
[1765561471332,0.00011602,90291.0,90290.0,0.02358]
[1765561471690,0.22162203,90291.0,90290.0,0.02358]
[1765561471894,0.22151092,90289.0,90288.0,0.01756]
[1765561472095,0.22151092,90289.0,90288.0,0.02521465]
[1765561475257,0.23269733,90291.0,90288.0,0.02521465]
[1765561475456,0.01119132,90291.0,90288.0,0.02521465]
[1765561475656,0.00011602,90291.0,90288.0,0.01873031]
[1765561475982,0.00011602,90291.0,90289.0,0.22151092]
[1765561476358,0.00011602,90291.0,90290.0,0.02358]
[1765561476557,0.00011602,90291.0,90290.0,0.05609]
[1765561478412,0.00011602,90291.0,90290.0,0.05709]
[1765561478590,0.00011602,90291.0,90290.0,0.05809]
[1765561481924,0.00011602,90291.0,90290.0,0.07547622]
[1765561482468,0.00011602,90291.0,90290.0,0.05809]
[1765561483069,0.00011602,90291.0,90290.0,0.07547661]
[1765561483484,0.00011602,90291.0,90290.0,0.05809]
[1765561485157,0.00011602,90291.0,90290.0,0.02558]
[1765561485334,0.00011602,90291.0,90290.0,0.05809]
[1765561485701,0.00011602,90291.0,90290.0,0.002]
[1765561486697,0.00011602,90291.0,90288.0,0.01756]
[1765561486900,0.00161753,90291.0,90288.0,0.01756]
[1765561487100,0.22150847,90290.0,90288.0,0.01756]
[1765561487751,0.22300998,90290.0,90288.0,0.01756]
[1765561488150,0.22300998,90290.0,90289.0,0.0276638]
[1765561488836,0.23258916,90288.0,90284.0,0.01107615]
[1765561489029,0.01107591,90286.0,90285.0,0.01756]
[1765561491053,0.01107591,90286.0,90278.0,0.22153591]
[1765561491054,0.22154759,90275.0,90273.0,0.01366]
[1765561491259,0.22154759,90275.0,90274.0,0.01756]
[1765561491664,0.22154759,90275.0,90274.0,0.04368811]
[1765561491865,0.24371759,90275.0,90274.0,0.04368811]
[1765561492143,0.24371759,90275.0,90274.0,0.01756]
[1765561493298,0.27640759,90275.0,90274.0,0.01756]
[1765561493677,0.011078,90269.0,90266.0,0.0154]
[1765561493877,0.01107824,90267.0,90266.0,0.01756]
[1765561494806,0.01107824,90267.0,90266.0,0.01856]
[1765561495223,0.011078,90269.0,90266.0,0.01856]
[1765561495519,0.02217,90267.0,90266.0,0.001]
[1765561495818,0.02217,90267.0,90266.0,0.002]
[1765561496087,0.23800467,90268.0,90266.0,0.002]
[1765561496292,0.2380042,90268.0,90266.0,0.002]
[1765561496428,0.01644,90268.0,90266.0,0.001]
[1765561496851,0.01644,90268.0,90266.0,0.002]
[1765561497258,0.01644,90268.0,90265.0,0.01107849]
[1765561497259,0.011078,90269.0,90265.0,0.01107849]
[1765561497606,0.01107812,90268.0,90266.0,0.001]
[1765561497956,0.01107812,90268.0,90266.0,0.002]
[1765561498158,0.01107812,90268.0,90266.0,0.001]
[1765561498932,0.22156491,90267.0,90266.0,0.001]
[1765561499391,0.01107714,90276.0,90273.0,0.0110775]
[1765561499591,0.01107738,90274.0,90271.0,0.01344]
[1765561499734,0.01107738,90274.0,90266.0,0.25557624]
[1765561499735,0.01107787,90270.0,90265.0,0.01107849]
[1765561499948,0.01107787,90270.0,90267.0,0.01107824]
[1765561500153,0.011078,90269.0,90266.0,0.01090664]
[1765561500353,0.22156245,90268.0,90266.0,0.001]
[1765561500595,0.028208,90269.0,90266.0,0.001]
[1765561500596,0.011078,90269.0,90266.0,0.03301]
[1765561500769,0.01107714,90276.0,90272.0,0.01107763]
[1765561500954,0.02566689,90278.0,90275.0,0.02121]
[1765561500955,0.01107689,90278.0,90275.0,0.02121]
[1765561501164,0.01107689,90278.0,90273.0,0.25455959]
[1765561501364,0.01107615,90284.0,90280.0,0.01107665]
[1765561501570,0.2475,90289.0,90284.0,0.04740615]
[1765561501773,0.2475,90289.0,90286.0,0.23259174]
[1765561501992,0.2475,90289.0,90287.0,0.22151363]
[1765561502208,0.2475,90289.0,90288.0,0.02121]
[1765561502384,0.2475,90289.0,90285.0,0.01107603]
[1765561502610,0.00150151,90290.0,90287.0,0.01107579]
[1765561502808,0.00011602,90291.0,90290.0,0.22150847]
[1765561503011,0.00011602,90291.0,90290.0,0.27572847]
[1765561503506,0.00011602,90291.0,90290.0,0.32574686]
[1765561503672,0.0004,90310.0,90309.0,0.22146186]
[1765561503873,0.0004,90310.0,90309.0,0.29324186]
[1765561506035,0.0004,90310.0,90309.0,0.27568186]
[1765561506261,0.0004,90310.0,90309.0,0.002]
[1765561506459,0.00190151,90310.0,90309.0,0.01956]
[1765561506881,0.00190151,90310.0,90309.0,0.05522]
[1765561507124,0.00190151,90310.0,90309.0,0.05422]
[1765561507332,0.00190151,90310.0,90309.0,0.05522]
[1765561507554,0.0004,90310.0,90309.0,0.05522]
[1765561507751,0.0004,90310.0,90309.0,0.05422]
[1765561509103,0.0004,90310.0,90309.0,0.05522]
[1765561509669,0.0004,90310.0,90309.0,0.02221]
[1765561510481,0.0004,90310.0,90309.0,0.05522]
[1765561510986,0.0004,90310.0,90309.0,0.07278]
[1765561512900,0.0004,90310.0,90309.0,0.02221]
[1765561513113,0.0004,90310.0,90309.0,0.01856]
[1765561513278,0.0004,90310.0,90309.0,0.04588517]
[1765561513477,0.0004,90310.0,90309.0,0.01856]
[1765561514382,0.02407151,90310.0,90309.0,0.001]
[1765561514590,0.06350513,90310.0,90309.0,0.001]
[1765561514996,0.08049513,90310.0,90309.0,0.001]
[1765561515417,0.08049513,90310.0,90299.0,0.01756]
[1765561515418,0.01107358,90305.0,90299.0,0.01756]
[1765561515615,0.0110737,90304.0,90301.0,0.01107407]
[1765561516044,0.00190151,90310.0,90307.0,0.22146467]
[1765561516333,0.00190151,90310.0,90309.0,0.24267186]
[1765561516703,0.0004,90310.0,90309.0,0.24267186]
[1765561516900,0.0004,90310.0,90309.0,0.27568186]
[1765561517102,0.0004,90310.0,90307.0,0.23253987]
[1765561517103,0.02257,90310.0,90308.0,0.01756]
[1765561517310,0.00190151,90310.0,90308.0,0.01756]
[1765561517508,0.00190151,90310.0,90309.0,0.05422]
[1765561517718,0.0004,90310.0,90309.0,0.29203969]
[1765561517902,0.0004,90310.0,90309.0,0.27568186]
[1765561519720,0.0004,90310.0,90309.0,0.27768186]
[1765561523760,0.0004,90310.0,90309.0,0.32770025]
[1765561524759,0.0004,90310.0,90309.0,0.33213438]
[1765561526605,0.0004,90310.0,90309.0,0.27768186]
[1765561526823,0.0004,90310.0,90309.0,0.02321]
[1765561527045,0.02258151,90310.0,90309.0,0.002]
[1765561527333,0.05469151,90310.0,90309.0,0.002]
[1765561527717,0.05469151,90310.0,90309.0,0.001]
[1765561528114,0.00190151,90310.0,90309.0,0.02732567]
[1765561528332,0.00190151,90310.0,90309.0,0.04955567]
[1765561528749,0.00190151,90310.0,90309.0,0.02732567]
[1765561531580,0.00190151,90310.0,90309.0,0.24878753]
[1765561531794,0.00190151,90310.0,90309.0,0.02732567]
[1765561531993,0.01297448,90310.0,90304.0,0.0110737]
[1765561532209,0.01297448,90310.0,90305.0,0.23254297]
[1765561532492,0.01107321,90308.0,90303.0,0.01107382]
[1765561532757,0.01107321,90308.0,90302.0,0.23903669]
[1765561532758,0.01107358,90305.0,90302.0,0.01756]
[1765561532956,0.01107358,90305.0,90302.0,0.02863395]
[1765561533088,0.01107333,90307.0,90303.0,0.01107382]
[1765561533295,0.01107321,90308.0,90304.0,0.23254783]
[1765561533729,0.01107346,90306.0,90303.0,0.01107382]
[1765561533952,0.01107505,90293.0,90288.0,0.05928728]
[1765561534165,0.01107468,90296.0,90287.0,0.01107579]
[1765561534493,0.01107431,90299.0,90295.0,0.01107481]
[1765561534685,0.01107358,90305.0,90302.0,0.01107395]
[1765561534866,0.01107358,90305.0,90297.0,0.01107456]
[1765561535072,0.0110737,90304.0,90300.0,0.2214828]
[1765561535283,0.0110737,90304.0,90299.0,0.01107431]
[1765561535436,0.01107382,90303.0,90302.0,0.001]
[1765561535856,0.01107333,90307.0,90301.0,0.01107407]
[1765561536255,0.01107333,90307.0,90303.0,0.01107382]
[1765561536826,0.01107333,90307.0,90304.0,0.22147413]
[1765561537026,0.01207333,90307.0,90304.0,0.22147413]
[1765561537250,0.01307333,90307.0,90304.0,0.22147413]
[1765561537447,0.01207333,90307.0,90304.0,0.22147413]
[1765561537628,0.001,90307.0,90304.0,0.23254729]
[1765561537826,0.002,90307.0,90304.0,0.23254729]
[1765561538082,0.001,90307.0,90304.0,0.23254745]
[1765561538283,0.01107321,90308.0,90304.0,0.0110737]
[1765561538490,0.001,90307.0,90306.0,0.22146922]
[1765561538645,0.002,90307.0,90306.0,0.23902922]
[1765561538847,0.002,90307.0,90306.0,0.29214922]
[1765561539186,0.001,90307.0,90306.0,0.29214922]
[1765561539363,0.001,90307.0,90306.0,0.34216761]
[1765561539685,0.001,90308.0,90307.0,0.05001839]
[1765561539887,0.001,90308.0,90307.0,0.10305506]
[1765561540094,0.0004,90310.0,90308.0,0.22146432]
[1765561540312,0.0004,90310.0,90309.0,0.04437618]
[1765561540469,0.0004,90310.0,90309.0,0.05312]
[1765561540813,0.0004,90310.0,90309.0,0.03979]
[1765561541439,0.01147297,90310.0,90306.0,0.002]
[1765561541640,0.01107395,90302.0,90300.0,0.01756]
[1765561541855,0.2325531,90302.0,90300.0,0.02991613]
[1765561542033,0.23405461,90302.0,90300.0,0.02991613]
[1765561542639,0.00150151,90302.0,90300.0,0.02991613]
[1765561542811,0.00150151,90302.0,90300.0,0.01335613]
[1765561543402,0.00150151,90302.0,90300.0,0.23483764]
[1765561543601,0.00150151,90302.0,90301.0,0.02801628]
[1765561545452,0.22298054,90302.0,90301.0,0.02801628]
[1765561545655,0.22148639,90299.0,90298.0,0.01756]
[1765561545854,0.24216639,90299.0,90298.0,0.01756]
[1765561547591,0.27427639,90299.0,90298.0,0.01756]
[1765561547988,0.28944639,90299.0,90298.0,0.01856]
[1765561548168,0.25733639,90299.0,90298.0,0.001]
[1765561549159,0.22150356,90292.0,90291.0,0.01756]
[1765561549361,0.24218356,90292.0,90291.0,0.05112421]
[1765561549579,0.27429356,90292.0,90291.0,0.01756]
[1765561549788,0.23259974,90284.0,90283.0,0.01756]
[1765561549999,0.01107615,90284.0,90283.0,0.01767602]
[1765561550654,0.28460934,90284.0,90283.0,0.00011602]
[1765561551422,0.28460934,90284.0,90283.0,0.00111602]
[1765561551857,0.28460934,90284.0,90283.0,0.00211602]
[1765561552264,0.28460934,90284.0,90283.0,0.00111602]
[1765561552443,1.28460934,90284.0,90283.0,0.00111602]
[1765561552646,0.28460934,90284.0,90283.0,0.00011602]
[1765561552853,1.28460934,90284.0,90283.0,0.00011602]
[1765561553600,1.28560934,90284.0,90283.0,0.00011602]
[1765561554249,1.28660934,90284.0,90283.0,0.00011602]
[1765561554852,1.57730934,90284.0,90283.0,0.00011602]
[1765561555889,1.57530934,90284.0,90283.0,0.00011602]
[1765561556287,1.57830934,90284.0,90283.0,0.00011602]
[1765561556909,1.57530934,90284.0,90283.0,0.00011602]
[1765561557109,1.57830934,90284.0,90283.0,0.00011602]
[1765561557347,1.588096,90284.0,90283.0,0.00011602]
[1765561557688,1.832596,90284.0,90283.0,0.00011602]
[1765561558026,1.835596,90284.0,90283.0,0.00011602]
[1765561558746,0.835596,90284.0,90283.0,0.00011602]
[1765561558916,1.835596,90284.0,90283.0,0.00011602]
[1765561559735,1.82980934,90284.0,90283.0,0.00011602]
[1765561560637,1.82280934,90284.0,90283.0,0.00011602]
[1765561560878,0.27833615,90284.0,90283.0,0.00011602]
[1765561561051,0.26457615,90284.0,90283.0,0.00011602]
[1765561561250,0.2535,90284.0,90283.0,0.00011602]
[1765561561457,0.30551,90284.0,90283.0,0.00011602]
[1765561561794,1.21591,90284.0,90283.0,0.00011602]
[1765561561991,0.2535,90284.0,90283.0,0.00011602]
[1765561562194,0.2505,90284.0,90283.0,0.00011602]
[1765561562553,0.2525,90284.0,90283.0,0.00011602]
[1765561562760,0.27226,90284.0,90283.0,0.00011602]
[1765561562966,0.02476,90284.0,90283.0,0.00011602]
[1765561563169,0.03150362,90284.0,90283.0,0.00011602]
[1765561563387,0.06375362,90284.0,90283.0,0.00011602]
[1765561563975,0.06075362,90284.0,90283.0,0.00011602]
[1765561564172,0.06175362,90284.0,90283.0,0.00011602]
[1765561564370,0.00974362,90284.0,90283.0,0.00011602]
[1765561564564,0.003,90284.0,90283.0,0.00011602]
[1765561565066,0.02276,90284.0,90283.0,0.00011602]
[1765561565503,0.06175362,90284.0,90283.0,0.00011602]
[1765561566304,0.02950362,90284.0,90283.0,0.00011602]
[1765561566710,0.02276,90284.0,90283.0,0.00011602]
[1765561566901,0.003,90284.0,90283.0,0.00011602]
[1765561567251,0.34571,90284.0,90283.0,0.00011602]
[1765561567452,1.34571,90284.0,90283.0,0.00011602]
[1765561570073,0.34571,90284.0,90283.0,0.00011602]
[1765561570929,0.31346,90284.0,90283.0,0.00011602]
[1765561571136,0.34571,90284.0,90283.0,0.00011602]
[1765561571601,0.31346,90284.0,90283.0,0.00011602]
[1765561572061,0.34571,90284.0,90283.0,0.00011602]
[1765561573290,1.34571,90284.0,90283.0,0.00011602]
[1765561573489,1.36327,90284.0,90283.0,0.00011602]
[1765561574247,0.36327,90284.0,90283.0,0.00011602]
[1765561574465,1.36327,90284.0,90283.0,0.00011602]
[1765561574864,1.61077,90284.0,90283.0,0.00011602]
[1765561575518,1.64040241,90284.0,90283.0,0.00011602]
[1765561576225,1.63940241,90284.0,90283.0,0.00011602]
[1765561576773,1.64140241,90284.0,90283.0,0.00011602]
[1765561576985,1.64540241,90284.0,90283.0,0.00011602]
[1765561577316,1.62784241,90284.0,90283.0,0.00011602]
[1765561577518,1.05340241,90284.0,90283.0,0.00011602]
[1765561577873,1.02955645,90284.0,90283.0,0.00011602]
[1765561578462,1.62155645,90284.0,90283.0,0.00011602]
[1765561578668,1.61755645,90284.0,90283.0,0.00011602]
[1765561578847,1.61355645,90284.0,90283.0,0.00011602]
[1765561579052,1.61655645,90284.0,90283.0,0.00011602]
[1765561579265,1.64043139,90284.0,90283.0,0.00011602]
[1765561579651,1.63943139,90284.0,90283.0,0.00011602]
[1765561579995,1.64143139,90284.0,90283.0,0.00011602]
[1765561580334,1.63564494,90284.0,90283.0,0.00011602]
[1765561581390,0.63564494,90284.0,90283.0,0.00011602]
[1765561581603,1.63564494,90284.0,90283.0,0.00011602]
[1765561582362,0.22162629,90242.0,90241.0,0.01473]
[1765561582564,0.22162629,90242.0,90241.0,0.01484602]
[1765561582997,0.22162629,90242.0,90241.0,0.00011602]
[1765561583856,0.22162629,90242.0,90241.0,0.00211602]
[1765561585139,0.22162629,90242.0,90241.0,0.00411602]
[1765561585534,0.27170629,90242.0,90241.0,0.00411602]
[1765561586148,0.2732078,90242.0,90241.0,0.00411602]
[1765561586349,0.00150151,90242.0,90241.0,0.03749602]
[1765561586725,0.01108106,90244.0,90241.0,0.00011602]
[1765561587140,0.02027,90242.0,90241.0,0.00011602]
[1765561587509,0.05008,90242.0,90241.0,0.00111602]
[1765561588540,0.05158151,90242.0,90241.0,0.00111602]
[1765561588736,0.05158151,90242.0,90241.0,0.00011602]
[1765561588948,0.05158151,90242.0,90241.0,0.00111602]
[1765561589089,0.05158151,90242.0,90241.0,0.00211602]
[1765561589285,0.05158151,90242.0,90241.0,0.00111602]
[1765561589703,0.02177151,90242.0,90241.0,0.00111602]
[1765561589912,0.0110807,90247.0,90241.0,0.03549602]
[1765561590134,0.0110807,90247.0,90243.0,0.01108119]
[1765561590345,0.01438,90263.0,90246.0,0.02065]
[1765561590538,0.011078,90269.0,90264.0,0.04372861]
[1765561590751,0.011078,90269.0,90265.0,0.01107849]
[1765561591209,0.23264057,90268.0,90264.0,0.012]
[1765561591398,0.00674362,90267.0,90264.0,0.01107861]
[1765561591538,0.01107738,90274.0,90271.0,0.01107775]
[1765561591741,0.01107603,90285.0,90280.0,0.01107665]
[1765561591935,0.24697293,90287.0,90280.0,0.01107665]
[1765561591936,0.01107591,90286.0,90282.0,0.0110764]
[1765561592159,0.23259893,90285.0,90281.0,0.01295]
[1765561592739,0.22152564,90283.0,90281.0,0.01295]
[1765561592934,0.01107615,90284.0,90273.0,0.0239675]
[1765561592935,0.01107714,90276.0,90273.0,0.0239675]
[1765561593185,0.01107665,90280.0,90275.0,0.01107726]
[1765561593336,0.01107665,90280.0,90276.0,0.25028054]
[1765561593544,0.01107677,90279.0,90276.0,0.02873772]
[1765561593789,0.01107689,90278.0,90275.0,0.01107726]
[1765561594623,0.01107628,90283.0,90277.0,0.23261685]
[1765561594945,0.01107652,90281.0,90278.0,0.01107689]
[1765561595305,0.01107652,90281.0,90273.0,0.0239675]
[1765561595306,0.23261376,90279.0,90273.0,0.0239675]
[1765561595515,0.01107665,90280.0,90276.0,0.23261996]
[1765561595876,0.01107665,90280.0,90275.0,0.01107726]
[1765561595877,0.23261223,90279.0,90273.0,0.05138326]
[1765561596075,0.22154527,90275.0,90273.0,0.04030576]
[1765561596392,0.01107714,90276.0,90273.0,0.04030576]
[1765561596730,0.01107714,90276.0,90268.0,0.01107812]
[1765561596731,0.01107787,90270.0,90265.0,0.01107849]
[1765561596982,0.01107787,90270.0,90267.0,0.01756]
[1765561597375,0.23263782,90270.0,90267.0,0.01756]
[1765561597577,0.22155585,90271.0,90267.0,0.02863824]
[1765561597890,0.01107726,90275.0,90272.0,0.01107763]
[1765561598366,0.01932227,90276.0,90274.0,0.0332]
[1765561598521,0.01932227,90276.0,90275.0,0.02065]
[1765561598522,0.01257865,90276.0,90275.0,0.02065]
[1765561598746,0.01257865,90276.0,90274.0,0.01255]
[1765561599067,0.22154527,90275.0,90274.0,0.01255]
[1765561599479,0.00150151,90276.0,90272.0,0.01249]
[1765561599638,0.00150151,90276.0,90273.0,0.0110775]
[1765561600241,0.01118305,90285.0,90281.0,0.01107652]
[1765561600434,0.01118305,90285.0,90279.0,0.01107677]
[1765561600435,0.0110764,90282.0,90279.0,0.01107677]
[1765561600991,0.0110764,90282.0,90278.0,0.01107689]
[1765561601431,0.00010702,90285.0,90284.0,0.22152319]
[1765561601636,0.00010702,90285.0,90284.0,0.27295319]
[1765561602880,0.00010702,90285.0,90284.0,0.27495319]
[1765561603022,0.00010702,90285.0,90284.0,0.27695319]
[1765561605577,0.00010702,90285.0,90284.0,0.61767158]
[1765561605827,0.0004,90310.0,90309.0,0.22146186]
[1765561606033,0.0004,90310.0,90309.0,0.24211186]
[1765561606230,0.0004,90310.0,90309.0,0.27289186]
[1765561607393,0.0004,90310.0,90309.0,0.32291025]
[1765561608572,0.0004,90310.0,90309.0,0.32691025]